[Event "WYCC 2018 G16"]
[Site "Halkidiki"]
[Date "2018.10.30"]
[Round "11"]
[White "Hajiyeva, Laman"]
[Black "Palma, Maria"]
[Result "1/2-1/2"]
[ECO "D35"]
[WhiteElo "1916"]
[BlackElo "2106"]
[Annotator "NA"]
[PlyCount "96"]
[EventDate "2018.10.20"]
[EventType "swiss"]
[EventCountry "GRE"]
[SourceTitle "playchess.com"]
[Source "ChessBase"]
[SourceQuality "1"]
[TimeControl "40/5400+30:1800+30"]

1. d4 {[%emt 0:00:00]} Nf6 {[%emt 0:00:00]} 2. c4 {[%emt 0:00:00]} e6 {[%emt 0:00:00]} 3. Nc3 {[%emt 0:00:00]} d5 {[%emt 0:00:00]} 4. cxd5 {[%emt 0:00:00]} exd5 {[%emt 0:00:00]} 5. Bg5 {[%emt 0:00:00]} c6 {[%emt 0:00:01]} 6. e3 {[%emt 0:00:00]} h6 {[%emt 0:01:22]} 7. Bh4 {[%emt 0:00:44]} Be6 {[%emt 0:00:12] D35: Queen's Gambit Declined: Exchange Variation} 8. Bd3 {[%emt 0:00:21]} Nbd7 {[%emt 0:00:30]} 9. Nge2 {[%emt 0:00:14]} g5 {[%emt 0:01:31]} 10. Bg3 {[%emt 0:00:22]} Nh5 {[%emt 0:00:49]} 11. Qc2 {[%emt 0:04:57]} Nxg3 {[%emt 0:00:57]} 12. Nxg3 {[%emt 0:00:57]} h5 {[%emt 0:00:25]} 13. e4 {[%emt 0:10:02]} dxe4 {[%emt 0:03:12]} 14. Ngxe4 {[%emt 0:02:13] [#]} Be7 $146 {[%emt 0:03:44]} ({Predecessor:} 14... Nb6) 15. O-O-O {[%emt 0:06:53]} Qc7 {[%emt 0:00:54]} 16. Kb1 {[%emt 0:04:10]} O-O-O {[%emt 0:01:03]} 17. Rhe1 {[%emt 0:06:19]} Kb8 {[%emt 0:08:58]} 18. Ng3 {[%emt 0:06:12]} h4 {[%emt 0:06:58]} 19. Nf5 {[%emt 0:04:02]} Bf6 {[%emt 0:01:43]} 20. Ne2 {[%emt 0:05:58]} Qa5 {[%emt 0:05:44]} 21. a3 {[%emt 0:04:38]} Nb6 {[%emt 0:09:44]} 22. Rd2 {[%emt 0:05:48]} c5 {[%emt 0:06:54]} 23. Rc1 {[%emt 0:09:03]} Na4 {[%emt 0:12:20]} 24. Be4 {[%emt 0:04:24]} c4 {[%emt 0:16:30]} 25. Ne3 {[%emt 0:01:19]} Rd7 {[%emt 0:09:47]} 26. Nc3 {[%emt 0:05:01]} Bxd4 {[%emt 0:03:51]} 27. Nxa4 {[%emt 0:04:54]} Bxe3 {[%emt 0:00:38]} 28. Rxd7 {[%emt 0:00:07]} Bxd7 {[%emt 0:00:04]} 29. fxe3 {[%emt 0:00:04]} Qxa4 {[%emt 0:02:12]} 30. Qxa4 {[%emt 0:00:06]} Bxa4 {[%emt 0:00:04]} 31. Rxc4 {[%emt 0:00:04]} Bd7 {[%emt 0:01:24]} 32. Bd5 {[%emt 0:04:12]} Bf5+ {[%emt 0:01:58]} 33. e4 {[%emt 0:00:58]} Bg6 {[%emt 0:00:19]} 34. Kc1 {[%emt 0:01:38]} Rc8 {[%emt 0:01:24]} 35. Rxc8+ {[%emt 0:01:41]} Kxc8 {[%emt 0:00:04]} 36. e5 {[%emt 0:00:55]} Kd7 {[%emt 0:01:37]} 37. Kd2 {[%emt 0:00:26]} Ke7 {[%emt 0:00:09]} 38. Kc3 {[%emt 0:00:52]} b6 {[%emt 0:00:05]} 39. Kb4 {[%emt 0:00:19]} Bd3 {[%emt 0:00:19]} 40. a4 {[%emt 0:00:00]} f6 {[%emt 0:00:00]} 41. exf6+ {[%emt 0:05:12]} Kxf6 {[%emt 0:02:05]} 42. Kc3 {[%emt 0:02:16]} Ke5 {[%emt 0:02:00]} 43. Kxd3 {[%emt 0:04:14]} Kxd5 {[%emt 0:00:06]} 44. b4 {[%emt 0:05:49]} a6 {[%emt 0:04:39]} 45. h3 {[%emt 0:01:12]} b5 {[%emt 0:01:22]} 46. a5 {[%emt 0:00:08]} Ke5 {[%emt 0:00:15]} 47. Ke3 $11 {[%emt 0:00:05]} Kd5 {[%emt 0:00:10]} 48. Kd3 {[%emt 0:00:05]} Ke5 {[%emt 0:00:19]} 1/2-1/2

[Event "WYCC 2018 G16"]
[Site "Halkidiki"]
[Date "2018.10.30"]
[Round "11"]
[White "Kobald, Jacqueline"]
[Black "Sabiani, Chjara"]
[Result "1-0"]
[ECO "B32"]
[WhiteElo "1911"]
[BlackElo "1778"]
[Annotator "NA"]
[PlyCount "107"]
[EventDate "2018.10.20"]
[EventType "swiss"]
[EventCountry "GRE"]
[SourceTitle "playchess.com"]
[Source "ChessBase"]
[SourceQuality "1"]
[TimeControl "40/5400+30:1800+30"]

1. e4 {[%emt 0:00:00]} c5 {[%emt 0:00:00]} 2. Nf3 {[%emt 0:00:00]} Nc6 {[%emt 0:00:00]} 3. d4 {[%emt 0:00:00]} cxd4 {[%emt 0:00:00]} 4. Nxd4 {[%emt 0:00:00]} e5 {[%emt 0:00:00] LiveBook: 5839 Games} 5. Nb5 {[%emt 0:00:11]} d6 {[%emt 0:00:00]} 6. c4 {[%emt 0:00:24]} Be7 {[%emt 0:00:03]} 7. b3 {[%emt 0:00:28]} f5 {[%emt 0:02:43]} 8. Ba3 {[%emt 0:11:12]} Nd4 {[%emt 0:04:43]} 9. Nxd4 {[%emt 0:11:25]} exd4 {[%emt 0:00:20]} 10. Bb2 {[%emt 0:06:33]} Bf6 {[%emt 0:10:28]} 11. Bd3 {[%emt 0:15:31]} Nh6 {[%emt 0:13:31]} 12. O-O {[%emt 0:06:05]} O-O $16 {[%emt 0:00:31]} 13. Nd2 {[%emt 0:03:27]} f4 {[%emt 0:06:48]} 14. Nf3 {[%emt 0:03:24]} Bg4 {[%emt 0:09:33]} 15. Be2 {[%emt 0:08:47]} Qe8 {[%emt 0:07:37]} 16. h3 d3 {[%emt 0:07:14]} 17. hxg4 {[%emt 0:08:27]} Bxb2 {[%emt 0:00:35]} 18. Bxd3 {[%emt 0:01:14]} Bxa1 {[%emt 0:00:28]} 19. Qxa1 {[%emt 0:02:28]} Nxg4 {[%emt 0:00:34]} 20. e5 {[%emt 0:04:23]} Nxe5 {[%emt 0:05:41]} 21. Nxe5 {[%emt 0:00:14]} Qxe5 {[%emt 0:00:31]} 22. Qb1 {[%emt 0:00:13]} Qh5 {[%emt 0:00:36]} 23. Be4 {[%emt 0:01:57]} Rf6 {[%emt 0:02:13]} 24. Qd3 {[%emt 0:01:13]} Raf8 25. Qd5+ {[%emt 0:01:07]} Qxd5 {[%emt 0:03:37]} 26. Bxd5+ {[%emt 0:00:20]} Kh8 {[%emt 0:00:11]} 27. Bxb7 {[%emt 0:00:48]} Re6 {[%emt 0:02:02]} 28. Bf3 {[%emt 0:01:42]} Rfe8 {[%emt 0:00:13]} 29. b4 {[%emt 0:04:57]} Re1 {[%emt 0:00:46]} 30. a4 {[%emt 0:01:03]} Kg8 {[%emt 0:05:20]} 31. b5 {[%emt 0:01:26]} R8e5 {[%emt 0:03:19]} 32. a5 {[%emt 0:00:56]} Rxf1+ {[%emt 0:02:12]} 33. Kxf1 {[%emt 0:00:03]} Kf8 {[%emt 0:01:40]} 34. a6 {[%emt 0:01:05]} Re7 35. Bb7 {[%emt 0:00:55]} Re8 {[%emt 0:04:15]} 36. b6 {[%emt 0:00:25]} axb6 37. a7 {[%emt 0:00:05]} Ke7 {[%emt 0:01:32]} 38. a8=Q {[%emt 0:00:11]} Rxa8 {[%emt 0:00:02]} 39. Bxa8 {[%emt 0:00:10]} Ke6 {[%emt 0:00:10]} 40. Ke2 {[%emt 0:00:00]} Ke5 {[%emt 0:00:00]} 41. Kd3 {[%emt 0:01:22]} h5 {[%emt 0:00:55]} 42. Bf3 {[%emt 0:01:36]} h4 {[%emt 0:00:46]} 43. Kc3 {[%emt 0:10:30]} Kf5 {[%emt 0:00:50]} 44. Kd4 {[%emt 0:03:00]} g5 {[%emt 0:00:16]} 45. Be4+ {[%emt 0:00:24]} Kg4 {[%emt 0:00:16]} 46. Bc6 {[%emt 0:01:28]} h3 {[%emt 0:00:26]} 47. Bd7+ {[%emt 0:00:09]} Kh4 48. gxh3 {[%emt 0:00:23]} f3 {[%emt 0:00:31]} 49. Bg4 {[%emt 0:02:58]} b5 {[%emt 0:00:32]} 50. cxb5 {[%emt 0:00:27]} d5 {[%emt 0:00:12]} 51. Ke5 {[%emt 0:00:25]} d4 {[%emt 0:00:10]} 52. b6 {[%emt 0:00:06]} d3 {[%emt 0:00:07]} 53. b7 {[%emt 0:00:11]} d2 {[%emt 0:00:07]} 54. b8=Q {[%emt 0:00:09]} 1-0

[Event "WYCC 2018 G16"]
[Site "Halkidiki"]
[Date "2018.10.30"]
[Round "11"]
[White "Nemcova, Karin"]
[Black "Zhang, Xiao"]
[Result "1-0"]
[ECO "B19"]
[WhiteElo "1888"]
[BlackElo "1980"]
[Annotator "NA"]
[PlyCount "65"]
[EventDate "2018.10.20"]
[EventType "swiss"]
[EventCountry "GRE"]
[SourceTitle "playchess.com"]
[Source "ChessBase"]
[SourceQuality "1"]
[TimeControl "40/5400+30:1800+30"]

1. e4 {[%emt 0:00:00]} c6 {[%emt 0:00:00]} 2. d4 {[%emt 0:00:00]} d5 {[%emt 0:00:00]} 3. Nd2 {[%emt 0:00:00]} dxe4 {[%emt 0:00:00]} 4. Nxe4 {[%emt 0:00:00]} Bf5 {[%emt 0:00:00]} 5. Ng3 {[%emt 0:00:01]} Bg6 {[%emt 0:00:03]} 6. h4 {[%emt 0:00:09]} h6 {[%emt 0:00:04]} 7. Nf3 {[%emt 0:00:07]} Nd7 {[%emt 0:00:03]} 8. h5 {[%emt 0:00:08]} Bh7 {[%emt 0:00:03]} 9. Bd3 {[%emt 0:00:08]} Bxd3 {[%emt 0:00:05]} 10. Qxd3 {[%emt 0:00:07]} e6 {[%emt 0:00:03]} 11. Bd2 {[%emt 0:00:11]} Ngf6 {[%emt 0:00:05]} 12. O-O-O {[%emt 0:00:20]} Be7 {[%emt 0:00:03]} 13. Ne4 {[%emt 0:00:47]} Nxe4 {[%emt 0:00:06]} 14. Qxe4 {[%emt 0:00:08]} Nf6 {[%emt 0:00:02] B19: Classical Caro-Kann: 4...Bf5 main line} 15. Qd3 {[%emt 0:01:22]} (15. Qe2 Qd5 16. c4 Qe4 17. Qxe4 Nxe4 18. Be3 f5 19. Kc2 Rd8 20. Nd2 Nf6 21. Nf3 Ne4 22. Nd2 Nf6 23. Nf3 Ne4 {½-½ (23) Mista,A (2606)-Tomczak,J (2615) Poland 2017}) 15... Qd5 {[%emt 0:00:26]} 16. Kb1 {[%emt 0:00:35]} Qe4 {[%emt 0:00:34]} 17. Qb3 {[%emt 0:01:19]} O-O-O {[%emt 0:11:59]} 18. Rhe1 $146 {[%emt 0:09:38]} ({Predecessor:} 18. g3 Kb8 19. Rhe1 Qd5 20. Qxd5 cxd5 21. Ne5 Rhf8 22. g4 {½-½ (53) Karasev,V-Kuznecov,S (1808) Kemerovo 2014}) 18... Qd5 {[%emt 0:03:56]} 19. Qa4 {[%emt 0:01:44]} Kb8 {[%emt 0:02:26]} 20. Ne5 {[%emt 0:02:58]} Rhf8 {[%emt 0:09:23]} 21. c4 {[%emt 0:08:06]} Qxg2 {[%emt 0:05:18]} 22. Bf4 {[%emt 0:02:23]} Bd6 {[%emt 0:03:33] [#]} 23. Re3 $17 {[%emt 0:15:09]} (23. d5 $1 $18 {[%mdl 512]}) 23... Nxh5 {[%emt 0:03:46]} 24. d5 {[%emt 0:10:20]} Bxe5 {[%emt 0:12:59]} 25. Bxe5+ {[%emt 0:00:09]} Ka8 {[%emt 0:00:02]} 26. Bc7 {[%emt 0:01:00]} a6 {[%emt 0:07:31]} 27. Bxd8 {[%emt 0:01:13]} Rxd8 {[%emt 0:00:16]} 28. dxc6 {[%emt 0:03:32]} Qg6+ {[%emt 0:17:31]} 29. Ka1 {[%emt 0:00:42]} Rxd1+ {[%emt 0:00:34]} 30. Qxd1 {[%emt 0:00:06]} bxc6 {[%emt 0:00:05]} 31. Rb3 {[%emt 0:00:18]} Qg5 {[%emt 0:00:23]} 32. a3 {[%emt 0:00:22]} Qe7 {[%emt 0:03:31]} 33. Qxh5 {[%emt 0:00:39]} 1-0

[Event "WYCC 2018 G16"]
[Site "Halkidiki"]
[Date "2018.10.30"]
[Round "11"]
[White "Kvendseth, Thyra"]
[Black "Bogdanic, Katarina"]
[Result "0-1"]
[ECO "E11"]
[WhiteElo "1854"]
[BlackElo "2014"]
[Annotator "NA"]
[PlyCount "84"]
[EventDate "2018.10.20"]
[EventType "swiss"]
[EventCountry "GRE"]
[SourceTitle "playchess.com"]
[Source "ChessBase"]
[SourceQuality "1"]
[TimeControl "40/5400+30:1800+30"]

1. d4 {[%emt 0:00:00]} Nf6 {[%emt 0:00:00]} 2. c4 {[%emt 0:00:00]} e6 {[%emt 0:00:00]} 3. Nf3 {[%emt 0:00:00]} Bb4+ {[%emt 0:00:00]} 4. Nbd2 {[%emt 0:00:28]} O-O {[%emt 0:00:00]} 5. a3 {[%emt 0:00:03]} Bxd2+ {[%emt 0:00:06]} 6. Bxd2 {[%emt 0:00:10]} b6 {[%emt 0:00:24]} 7. e3 {[%emt 0:01:27]} Bb7 {[%emt 0:01:11]} 8. Bd3 {[%emt 0:01:01]} d6 {[%emt 0:03:33]} 9. Qc2 {[%emt 0:06:02]} Nbd7 {[%emt 0:04:41]} 10. b4 {[%emt 0:06:26]} c5 {[%emt 0:02:27]} 11. e4 {[%emt 0:10:00]} cxd4 {[%emt 0:01:47]} 12. Nxd4 {[%emt 0:00:09]} Ne5 {[%emt 0:00:17]} 13. f3 {[%emt 0:02:46]} Rc8 {[%emt 0:00:52]} 14. Qb3 {[%emt 0:14:16]} d5 {[%emt 0:01:31]} 15. exd5 {[%emt 0:11:39]} Nxd5 {[%emt 0:19:04]} 16. cxd5 {[%emt 0:04:26]} Qh4+ {[%emt 0:00:42]} 17. Ke2 {[%emt 0:04:05]} Qxd4 {[%emt 0:00:08]} 18. Be4 {[%emt 0:04:16]} exd5 {[%emt 0:04:54]} 19. Bf5 {[%emt 0:03:57]} Rce8 {[%emt 0:02:41]} 20. Qc3 {[%emt 0:09:26]} Nc4+ {[%emt 0:02:28]} 21. Kd1 {[%emt 0:00:41]} Ne3+ {[%emt 0:01:03]} 22. Kc1 {[%emt 0:00:41]} Nxf5 {[%emt 0:00:19]} 23. Qxd4 {[%emt 0:02:51]} Nxd4 {[%emt 0:00:02]} 24. Ra2 {[%emt 0:00:20]} Re2 {[%emt 0:00:35]} 25. Rg1 {[%emt 0:01:08]} Rfe8 {[%emt 0:02:01]} 26. Rb2 {[%emt 0:02:29]} Nf5 {[%emt 0:01:13]} 27. Bg5 {[%emt 0:04:05]} Rxb2 {[%emt 0:01:14]} 28. Kxb2 {[%emt 0:00:06]} Re2+ {[%emt 0:00:07]} 29. Kb1 {[%emt 0:00:35]} h6 {[%emt 0:00:08]} 30. Bf4 {[%emt 0:00:45]} Nh4 {[%emt 0:00:39]} 31. Rc1 {[%emt 0:00:13]} Nxg2 {[%emt 0:00:58]} 32. Bb8 {[%emt 0:01:01]} d4 {[%emt 0:00:47]} 33. Bxa7 {[%emt 0:00:53]} d3 {[%emt 0:00:08]} 34. Bxb6 {[%emt 0:00:32]} Bxf3 {[%emt 0:01:41]} 35. Rc8+ {[%emt 0:00:47]} Kh7 {[%emt 0:00:06]} 36. Rd8 {[%emt 0:00:05]} Be4 {[%emt 0:01:42]} 37. Kc1 {[%emt 0:00:39]} Ra2 {[%emt 0:00:22]} 38. Rd4 {[%emt 0:00:37]} Bg6 {[%emt 0:00:36]} 39. b5 {[%emt 0:01:15]} Nf4 {[%emt 0:05:16]} 40. Rd8 {[%emt 0:00:00]} Ne2+ {[%emt 0:00:00]} 41. Kb1 {[%emt 0:04:18]} Nc3+ {[%emt 0:00:37]} 42. Kc1 {[%emt 0:00:05]} Rc2# {[%emt 0:00:04]} 0-1

[Event "WYCC 2018 G16"]
[Site "Halkidiki"]
[Date "2018.10.30"]
[Round "11"]
[White "Hoesley, Aria"]
[Black "Djidjeli, Sarah"]
[Result "1-0"]
[ECO "B30"]
[WhiteElo "1831"]
[BlackElo "1952"]
[Annotator "NA"]
[PlyCount "109"]
[EventDate "2018.10.20"]
[EventType "swiss"]
[EventCountry "GRE"]
[SourceTitle "playchess.com"]
[Source "ChessBase"]
[SourceQuality "1"]
[TimeControl "40/5400+30:1800+30"]

1. e4 {[%emt 0:00:00]} c5 {[%emt 0:00:00]} 2. Nf3 {[%emt 0:00:00]} Nc6 {[%emt 0:00:00]} 3. Nc3 {[%emt 0:00:07]} d6 {[%emt 0:00:00]} 4. d4 {[%emt 0:00:18]} cxd4 {[%emt 0:00:00]} 5. Nxd4 {[%emt 0:00:03]} e5 {[%emt 0:00:00]} 6. Nf5 {[%emt 0:00:43]} Bxf5 {[%emt 0:01:20] B54: Sicilian: 2...d6 3 d4 cxd4 4 Nxd4, Unusual Lines} 7. exf5 {[%emt 0:00:03]} Qd7 {[%emt 0:00:18]} 8. Bc4 {[%emt 0:07:45]} Nge7 $146 {[%emt 0:07:20]} ({Predecessor:} 8... Qxf5 9. O-O Nf6 10. f4 e4 11. Nd5 Nxd5 12. Bxd5 Ne7 13. Bxb7 Rb8 14. Ba6 {1-0 (39) Baghdasaryan,V (2437)-Gabuzyan,H (2583) Tsaghkadzor 2017}) 9. g4 {[%emt 0:08:08]} Nd4 {[%emt 0:09:04]} 10. Be2 {[%emt 0:09:24] [#]} Nxe2 {[%emt 0:03:10]} ({Black should try} 10... h5 $1 $17 {[%mdl 512]} 11. f3 (11. gxh5 Qxf5) 11... hxg4 12. fxg4 d5) 11. Qxe2 {[%emt 0:00:31]} Nc6 {[%emt 0:00:50]} 12. Qe4 {[%emt 0:04:24]} h5 {[%emt 0:08:20]} 13. g5 {[%emt 0:04:28]} Nd4 {[%emt 0:00:46]} 14. Be3 {[%emt 0:14:56]} Nxf5 {[%emt 0:11:30]} 15. O-O-O {[%emt 0:00:30]} Nxe3 {[%emt 0:01:59]} 16. Qxe3 {[%emt 0:01:25]} Be7 {[%emt 0:01:18]} 17. Rhg1 {[%emt 0:01:56]} Qc6 {[%emt 0:05:49]} 18. Nd5 {[%emt 0:07:06]} Bd8 {[%emt 0:04:17]} 19. Rgf1 {[%emt 0:11:03]} Bb6 {[%emt 0:07:22]} 20. Qe4 {[%emt 0:00:26]} Qc5 {[%emt 0:08:01]} 21. Rd3 {[%emt 0:05:15]} Qa5 {[%emt 0:03:42]} 22. f4 {[%emt 0:04:48]} O-O-O {[%emt 0:06:05]} 23. fxe5 {[%emt 0:05:17]} Rhe8 {[%emt 0:01:20]} 24. Nxb6+ {[%emt 0:05:34]} Qxb6 {[%emt 0:03:17]} 25. Qc4+ {[%emt 0:00:32]} Kb8 {[%emt 0:03:13]} 26. exd6 {[%emt 0:01:17]} Rd7 {[%emt 0:04:58]} 27. h4 {[%emt 0:03:34]} Qa5 {[%emt 0:03:42]} 28. Rfd1 {[%emt 0:00:45]} Rc8 {[%emt 0:00:32]} 29. Qb3 {[%emt 0:00:26]} Qf5 {[%emt 0:01:00]} 30. Qa4 {[%emt 0:01:11]} Rc6 {[%emt 0:00:29]} 31. a3 {[%emt 0:02:28]} Qe6 {[%emt 0:01:32]} 32. Kb1 {[%emt 0:01:03]} Rc4 {[%emt 0:01:29]} 33. Qa5 {[%emt 0:00:24]} Re4 {[%emt 0:01:56]} 34. Qc3 {[%emt 0:00:37]} Re5 {[%emt 0:01:07]} 35. Rd4 {[%emt 0:00:15]} Qe8 {[%emt 0:01:11]} 36. Rc4 {[%emt 0:00:12]} Re6 {[%emt 0:00:27]} 37. Qxg7 {[%emt 0:00:33]} Rexd6 {[%emt 0:00:15]} 38. Rxd6 {[%emt 0:00:43]} Rxd6 {[%emt 0:00:03]} 39. Qc3 {[%emt 0:00:12]} Rd1+ {[%emt 0:01:14]} 40. Ka2 {[%emt 0:00:00]} a6 {[%emt 0:00:00]} 41. Qg3+ {[%emt 0:12:55]} Ka8 {[%emt 0:04:22]} 42. Qf2 {[%emt 0:01:12]} Qe6 {[%emt 0:01:08]} 43. b3 {[%emt 0:01:09]} Kb8 {[%emt 0:02:58]} 44. Rd4 {[%emt 0:05:07]} Re1 {[%emt 0:06:10]} 45. Qf4+ {[%emt 0:01:26]} Ka7 {[%emt 0:01:46]} 46. Rd6 {[%emt 0:00:23]} Qe3 {[%emt 0:01:52]} 47. Qxe3+ {[%emt 0:00:12]} ({Inferior is} 47. Qxf7 Qc3 $11) 47... Rxe3 {[%emt 0:00:04]} 48. Rh6 {[%emt 0:00:09]} Kb8 {[%emt 0:01:02]} 49. Rxh5 {[%emt 0:00:00]} Kc8 {[%emt 0:00:10]} 50. Rh7 {[%emt 0:01:18]} Rf3 {[%emt 0:00:10]} 51. h5 {[%emt 0:00:15]} Rg3 {[%emt 0:00:44]} 52. Rxf7 {[%emt 0:00:27]} Rxg5 {[%emt 0:00:04]} 53. h6 {[%emt 0:00:05]} Rg8 {[%emt 0:00:34]} 54. h7 {[%emt 0:00:24]} Rh8 {[%emt 0:00:08]} 55. Rg7 {[%emt 0:00:04]} 1-0

[Event "WYCC 2018 G16"]
[Site "Halkidiki"]
[Date "2018.10.30"]
[Round "11"]
[White "Kalyva, Kyriaki"]
[Black "Leonova, Ameliya"]
[Result "0-1"]
[ECO "A58"]
[WhiteElo "1779"]
[BlackElo "1736"]
[Annotator "NA"]
[PlyCount "66"]
[EventDate "2018.10.20"]
[EventType "swiss"]
[EventCountry "GRE"]
[SourceTitle "playchess.com"]
[Source "ChessBase"]
[SourceQuality "1"]
[TimeControl "40/5400+30:1800+30"]

1. d4 {[%emt 0:00:00]} Nf6 {[%emt 0:00:00]} 2. c4 {[%emt 0:00:00]} c5 {[%emt 0:00:00]} 3. d5 {[%emt 0:00:00]} b5 {[%emt 0:00:00]} 4. cxb5 {[%emt 0:00:00]} a6 {[%emt 0:00:00]} 5. bxa6 {[%emt 0:00:00]} g6 {[%emt 0:00:00]} 6. Nc3 {[%emt 0:00:00]} Bg7 {[%emt 0:00:00]} 7. e4 {[%emt 0:00:04]} O-O {[%emt 0:00:00]} 8. Nf3 {[%emt 0:00:09]} Qa5 {[%emt 0:00:03]} 9. Bd2 {[%emt 0:00:20]} Bxa6 {[%emt 0:00:05]} 10. Be2 {[%emt 0:00:25]} d6 {[%emt 0:00:07]} 11. O-O {[%emt 0:00:21]} Bxe2 {[%emt 0:00:07]} 12. Qxe2 {[%emt 0:00:07]} Qa6 {[%emt 0:00:09]} 13. Qd1 {[%emt 0:02:10]} Nbd7 {[%emt 0:00:44]} 14. Qc2 {[%emt 0:04:25]} Rfb8 {[%emt 0:12:38]} 15. a4 {[%emt 0:11:59]} Qc4 {[%emt 0:16:14]} 16. Ra3 {[%emt 0:11:15]} Ne8 {[%emt 0:11:07]} 17. b3 {[%emt 0:08:10]} Qa6 {[%emt 0:01:42]} 18. Rb1 {[%emt 0:01:04]} Nc7 {[%emt 0:01:06]} 19. Na2 {[%emt 0:11:24]} Nb5 {[%emt 0:03:38]} 20. Bc1 {[%emt 0:01:14]} Nxa3 {[%emt 0:00:29]} 21. Bxa3 {[%emt 0:00:07]} Rb7 {[%emt 0:03:29]} 22. Nd2 {[%emt 0:06:38]} Ne5 {[%emt 0:01:30]} 23. f4 {[%emt 0:20:10]} Qd3 {[%emt 0:01:47]} 24. Qxd3 {[%emt 0:01:58]} Nxd3 {[%emt 0:00:13]} 25. g3 {[%emt 0:01:11]} c4 {[%emt 0:03:08]} 26. Nxc4 {[%emt 0:06:30]} Rxa4 {[%emt 0:02:07]} 27. b4 {[%emt 0:00:40]} Rc7 {[%emt 0:02:14]} 28. Rb3 {[%emt 0:01:06]} Rxc4 {[%emt 0:01:17]} 29. Rxd3 {[%emt 0:00:07]} Rc2 {[%emt 0:00:43]} 30. Nc1 {[%emt 0:02:15]} Rc3 {[%emt 0:00:45]} 31. Bb2 {[%emt 0:05:48]} Rxd3 {[%emt 0:00:09]} 32. Nxd3 {[%emt 0:00:13]} Bxb2 {[%emt 0:00:03]} 33. Nxb2 {[%emt 0:00:07]} Ra1+ {[%emt 0:00:03]} 0-1

[Event "WYCC 2018 G16"]
[Site "Halkidiki"]
[Date "2018.10.30"]
[Round "11"]
[White "Staravoitava, Hanna"]
[Black "Tejasvi M"]
[Result "1-0"]
[ECO "C45"]
[WhiteElo "1768"]
[BlackElo "1869"]
[Annotator "NA"]
[PlyCount "87"]
[EventDate "2018.10.20"]
[EventType "swiss"]
[EventCountry "GRE"]
[SourceTitle "playchess.com"]
[Source "ChessBase"]
[SourceQuality "1"]
[TimeControl "40/5400+30:1800+30"]

1. e4 {[%emt 0:00:00]} e5 {[%emt 0:00:09]} 2. Nf3 {[%emt 0:00:00]} Nc6 {[%emt 0:00:08]} 3. d4 {[%emt 0:00:00]} exd4 {[%emt 0:00:07]} 4. Nxd4 {[%emt 0:00:00]} Bc5 {[%emt 0:00:11]} 5. Nxc6 {[%emt 0:00:00]} Qf6 {[%emt 0:00:07]} 6. Qf3 {[%emt 0:00:00]} Qxf3 {[%emt 0:01:16]} 7. gxf3 {[%emt 0:00:00]} dxc6 {[%emt 0:00:13]} 8. Be3 {[%emt 0:00:07]} Bxe3 {[%emt 0:02:13]} 9. fxe3 {[%emt 0:00:06]} Be6 {[%emt 0:00:15]} 10. Nd2 {[%emt 0:00:05]} O-O-O {[%emt 0:01:34]} 11. Bc4 {[%emt 0:00:22]} Bxc4 {[%emt 0:10:55]} 12. Nxc4 {[%emt 0:00:06]} Nf6 {[%emt 0:02:34]} 13. Rg1 {[%emt 0:02:21]} g6 {[%emt 0:00:50]} 14. Ke2 {[%emt 0:00:21]} Rhe8 {[%emt 0:03:32]} 15. a4 {[%emt 0:02:12]} Nd7 {[%emt 0:14:41]} 16. Rad1 {[%emt 0:03:34]} Nb6 {[%emt 0:09:00]} 17. Nxb6+ {[%emt 0:01:54]} cxb6 {[%emt 0:00:07]} 18. Rxd8+ {[%emt 0:10:08]} Kxd8 {[%emt 0:01:03]} 19. h4 {[%emt 0:03:46]} Re6 {[%emt 0:06:01]} 20. h5 {[%emt 0:09:22]} Ke7 {[%emt 0:05:51]} 21. Rh1 {[%emt 0:02:16]} h6 {[%emt 0:16:00]} 22. hxg6 {[%emt 0:00:18]} Rxg6 {[%emt 0:00:07]} 23. f4 {[%emt 0:06:33]} Kf6 {[%emt 0:06:47]} 24. Kf3 {[%emt 0:09:25]} Kg7 {[%emt 0:00:41]} 25. e5 {[%emt 0:01:42]} Kh7 {[%emt 0:02:01]} 26. Rh2 {[%emt 0:01:45]} b5 {[%emt 0:02:34]} 27. axb5 {[%emt 0:00:49]} cxb5 {[%emt 0:00:06]} 28. Ke4 {[%emt 0:01:19]} a5 {[%emt 0:04:12]} 29. c3 {[%emt 0:04:56]} a4 {[%emt 0:00:38]} 30. Kd5 {[%emt 0:00:33]} Rc6 {[%emt 0:01:17]} 31. f5 {[%emt 0:00:40]} a3 {[%emt 0:00:13]} 32. bxa3 Rxc3 {[%emt 0:00:05]} 33. e4 {[%emt 0:02:33]} Rd3+ {[%emt 0:01:13]} 34. Kc5 {[%emt 0:00:21]} Re3 {[%emt 0:00:08]} 35. Rh4 {[%emt 0:00:07]} Rxa3 {[%emt 0:00:17]} 36. Kxb5 {[%emt 0:01:23]} Ra6 {[%emt 0:00:09]} 37. Kc5 {[%emt 0:01:48]} Kg7 {[%emt 0:01:34]} 38. Rh2 {[%emt 0:01:04]} Ra4 {[%emt 0:01:38]} 39. Re2 {[%emt 0:02:44]} h5 {[%emt 0:00:10]} 40. Kd6 {[%emt 0:00:00]} Rd4+ {[%emt 0:00:00]} 41. Ke7 {[%emt 0:00:52]} h4 {[%emt 0:02:28]} 42. e6 {[%emt 0:01:16]} fxe6 {[%emt 0:00:07]} 43. f6+ {[%emt 0:00:05]} Kh7 {[%emt 0:00:22]} 44. f7 {[%emt 0:00:11]} 1-0

[Event "WYCC 2018 G16"]
[Site "Halkidiki"]
[Date "2018.10.30"]
[Round "11"]
[White "Hovhannisyan, Mane"]
[Black "Esadze, Tamari"]
[Result "0-1"]
[ECO "A17"]
[WhiteElo "1730"]
[BlackElo "1911"]
[Annotator "NA"]
[PlyCount "56"]
[EventDate "2018.10.20"]
[EventType "swiss"]
[EventCountry "GRE"]
[SourceTitle "playchess.com"]
[Source "ChessBase"]
[SourceQuality "1"]
[TimeControl "40/5400+30:1800+30"]

1. Nf3 {[%emt 0:00:00]} Nf6 {[%emt 0:00:00]} 2. c4 {[%emt 0:00:00]} e6 {[%emt 0:00:00]} 3. Nc3 {[%emt 0:00:00]} Bb4 {[%emt 0:00:36]} 4. Qc2 {[%emt 0:00:00]} Bxc3 {[%emt 0:01:23]} 5. Qxc3 {[%emt 0:00:00]} b6 {[%emt 0:01:26]} 6. g3 {[%emt 0:00:20]} Bb7 {[%emt 0:00:05]} 7. Bg2 {[%emt 0:00:08]} O-O {[%emt 0:00:28]} 8. O-O {[%emt 0:01:35]} d6 {[%emt 0:00:35]} 9. a3 {[%emt 0:01:13]} Nbd7 {[%emt 0:01:11]} 10. b4 {[%emt 0:05:59]} c5 {[%emt 0:05:23]} 11. Bb2 {[%emt 0:00:20]} Qe7 {[%emt 0:04:44]} 12. d3 {[%emt 0:00:26]} d5 {[%emt 0:05:23] A17: Englische Eröffnung} 13. bxc5 {[%emt 0:07:52]} bxc5 $146 {[%emt 0:10:30]} ({Vorgänger:} 13... Nxc5 14. a4 Rfc8 15. a5 dxc4 16. Qxc4 b5 17. Qh4 Nd5 18. Qh5 b4 19. Rfb1 f6 20. Nd4 {0-1 (28) Cebalo,M (2540)-Kovacevic,B (2340) Medulin 1997}) 14. a4 {[%emt 0:02:36]} d4 {[%emt 0:15:05]} 15. Qc2 {[%emt 0:05:00]} e5 {[%emt 0:02:10]} 16. Nd2 {[%emt 0:01:37]} Bxg2 {[%emt 0:03:19]} 17. Kxg2 {[%emt 0:00:01]} Nh5 {[%emt 0:04:29]} 18. Ba3 {[%emt 0:01:25]} f5 {[%emt 0:00:32]} 19. Rab1 {[%emt 0:02:21]} Qd6 {[%emt 0:05:31]} 20. Rb2 {[%emt 0:18:50]} Rf6 {[%emt 0:02:40]} 21. Rfb1 {[%emt 0:02:07]} Rg6 $11 {[%emt 0:01:38]} 22. Rb5 {[%emt 0:07:36]} Qc6+ {[%emt 0:03:27]} 23. Kg1 {[%emt 0:05:19]} Nf4 {[%emt 0:02:10]} 24. Nf3 {[%emt 0:00:43]} e4 {[%emt 0:02:26]} 25. Nh4 {[%emt 0:12:42]} exd3 {[%emt 0:02:02]} 26. exd3 {[%emt 0:00:29]} Nh3+ {[%emt 0:07:41]} 27. Kf1 {[%emt 0:00:08]} Re8 {[%emt 0:06:22]} 28. Ng2 {[%emt 0:03:34]} Nf4 {[%emt 0:00:11]} 0-1